bitfinex/quotes_ETHUSD_20250815
["timestamp","ask_amount","ask_price","bid_price","bid_amount"]
[1755285656123,1e-08,4420.4,4420.3,2.26228988]
[1755285656527,0.43000001,4420.4,4420.3,2.26228988]
[1755285657026,0.43000001,4420.4,4420.2,2.2623358]
[1755285657321,0.43,4420.3,4419.7,2.37539495]
[1755285657524,0.43,4420.3,4419.8,2.26252441]
[1755285657828,0.43,4420.3,4420.0,2.2624391]
[1755285658003,1e-08,4420.4,4420.0,2.2624391]
[1755285658206,0.43,4420.2,4420.0,2.2624391]
[1755285658404,0.47960001,4420.4,4420.0,2.2624391]
[1755285658605,0.43,4420.1,4419.7,0.1128]
[1755285658802,0.43,4420.1,4419.1,3.635]
[1755285658803,0.1128,4419.8,4419.1,3.635]
[1755285659025,0.43,4419.7,4419.1,0.37488]
[1755285659326,0.43,4419.7,4419.1,2.26290014]
[1755285659825,0.43,4419.7,4419.3,2.26279376]
[1755285660033,0.43,4419.6,4419.0,0.1128]
[1755285660529,0.1128,4419.1,4418.8,0.001]
[1755285660733,0.35035711,4419.1,4418.8,0.001]
[1755285660890,0.43,4419.0,4418.8,0.001]
[1755285661307,0.43,4418.9,4418.8,0.001]
[1755285661706,2.69300663,4418.9,4418.8,0.001]
[1755285661909,3.17260663,4418.9,4418.8,0.001]
[1755285662126,1.46443256,4418.9,4418.8,0.001]
[1755285662289,3.17260663,4418.9,4418.8,0.001]
[1755285662494,6.89248488,4418.9,4418.8,0.001]
[1755285662722,7.37921897,4418.9,4418.8,0.001]
[1755285664042,6.82921897,4418.9,4418.8,0.001]
[1755285664251,6.45528488,4418.9,4418.8,0.001]
[1755285664696,7.32710488,4418.9,4418.8,0.001]
[1755285665354,1.30182,4418.9,4418.8,0.001]
[1755285665643,4.1768,4418.9,4418.8,0.001]
[1755285666350,2.26321149,4418.5,4418.4,0.001]
[1755285666642,5.92601149,4418.5,4418.4,0.001]
[1755285667061,7.29288369,4418.5,4418.4,0.001]
[1755285667338,38.24813696,4418.5,4418.4,0.001]
[1755285667832,38.45866984,4418.5,4418.4,0.001]
[1755285668036,39.06593624,4418.5,4418.4,0.001]
[1755285668223,38.45866984,4418.5,4418.4,0.001]
[1755285668533,38.45866984,4418.5,4418.4,1e-08]
[1755285669216,2.81346763,4418.0,4417.9,1e-08]
[1755285669417,45.62915394,4418.0,4417.9,1e-08]
[1755285669619,47.81309501,4418.0,4417.9,1e-08]
[1755285669800,49.4918509,4418.0,4417.9,1e-08]
[1755285670002,49.6046509,4418.0,4417.9,1e-08]
[1755285670334,48.9973845,4418.0,4417.9,1e-08]
[1755285671505,0.55,4417.8,4417.1,0.021]
[1755285671813,5.92667756,4417.2,4417.1,0.021]
[1755285672020,9.56067756,4417.2,4417.1,0.021]
[1755285672347,11.96435471,4417.2,4417.1,0.021]
[1755285672703,9.68838449,4417.2,4417.1,0.021]
[1755285672834,12.87068449,4417.2,4417.1,0.021]
[1755285673459,9.32068449,4417.2,4417.1,0.021]
[1755285673624,9.87068449,4417.2,4417.1,0.021]
[1755285673828,9.32068449,4417.2,4417.1,0.021]
[1755285675145,8.89098449,4417.2,4417.1,0.021]
[1755285675348,6.62710693,4417.2,4417.1,0.021]
[1755285675550,5.26907715,4417.2,4417.1,0.021]
[1755285675919,7.96265471,4417.2,4417.1,0.021]
[1755285676662,8.51265471,4417.2,4417.1,0.021]
[1755285676815,8.96435471,4417.2,4417.1,0.021]
[1755285677011,8.51265471,4417.2,4417.1,0.021]
[1755285677357,12.89029865,4417.2,4417.1,0.021]
[1755285678521,13.34199865,4417.2,4417.1,0.021]
[1755285678863,14.69999865,4417.2,4417.1,0.021]
[1755285679075,14.24829865,4417.2,4417.1,0.021]
[1755285679482,44.69999865,4417.2,4417.1,0.021]
[1755285679781,4.17203133,4416.9,4416.5,0.001]
[1755285679982,40.91963133,4416.9,4416.5,0.001]
[1755285680192,35.70628441,4416.9,4416.8,1e-08]
[1755285680369,35.70628441,4416.9,4416.8,2.8451826]
[1755285680370,0.16370352,4416.9,4416.8,2.8451826]
[1755285680678,0.11806172,4418.5,4416.8,2.8451826]
[1755285680679,0.4297,4419.2,4416.9,3.0]
[1755285680985,3.638,4419.1,4417.3,3.0]
[1755285681277,3.64,4419.0,4417.4,0.3]
[1755285681576,3.11050216,4419.9,4417.1,2.26388456]
[1755285681577,3.642,4418.9,4417.1,2.26388456]
[1755285681778,3.642,4418.9,4417.5,2.26371839]
[1755285681978,0.31105022,4419.8,4417.3,0.55]
[1755285682305,0.02,4419.4,4418.5,2.26316592]
[1755285682447,3.643,4419.3,4417.2,2.49026205]
[1755285682782,0.55,4419.1,4417.2,0.22638846]
[1755285683186,2.26310492,4418.8,4416.8,1e-08]
[1755285683347,2.26316027,4418.6,4416.8,1e-08]
[1755285683678,2.26316027,4418.6,4417.4,2.26372557]
[1755285683883,2.26316027,4418.6,4416.8,1e-08]
[1755285683884,1.4314,4418.5,4416.8,1e-08]
[1755285684184,2.26365159,4417.7,4416.8,1e-08]
[1755285684380,3.643,4417.6,4416.8,1e-08]
[1755285684884,2.26356688,4417.9,4416.8,1e-08]
[1755285684885,3.643,4417.5,4416.8,1e-08]
[1755285685669,0.8814,4417.4,4416.8,1e-08]
[1755285685848,1.56020753,4417.4,4416.8,1e-08]
[1755285687553,3.82399135,4417.4,4416.8,1e-08]
[1755285687959,0.4297,4417.3,4416.8,1e-08]
[1755285688289,2.26403133,4416.9,4416.8,1e-08]
[1755285688495,9.45203133,4416.9,4416.8,1e-08]
[1755285688783,11.60848014,4416.9,4416.8,1e-08]
[1755285688992,12.09299214,4416.9,4416.8,1e-08]
[1755285689148,12.70025854,4416.9,4416.8,1e-08]
[1755285690048,5.64096081,4416.9,4416.8,1e-08]
[1755285690250,5.000912,4416.9,4416.8,1e-08]
[1755285690646,5.114512,4416.9,4416.8,1e-08]
[1755285690890,3.7486,4416.9,4416.8,1e-08]
[1755285691389,7.37854333,4416.9,4416.8,1e-08]
[1755285692981,7.98580973,4416.9,4416.8,1e-08]
[1755285693165,9.0107843,4416.9,4416.8,1e-08]
[1755285694073,9.5607843,4416.9,4416.8,1e-08]
[1755285695066,8.9535179,4416.9,4416.8,1e-08]
[1755285696101,41.9535179,4416.9,4416.8,1e-08]
[1755285696429,42.75617012,4416.9,4416.8,1e-08]
[1755285696574,41.9535179,4416.9,4416.8,1e-08]
[1755285699605,43.16784275,4416.9,4416.8,1e-08]
[1755285700780,38.98284275,4416.9,4416.8,1e-08]
[1755285701107,10.5211179,4416.9,4416.8,1e-08]
[1755285701405,42.0281179,4416.9,4416.8,1e-08]
[1755285701609,2.26413385,4416.7,4416.6,0.001]
[1755285701816,39.38264585,4416.7,4416.6,0.001]
[1755285701975,40.33964585,4416.7,4416.6,0.001]
[1755285702175,41.55444002,4416.7,4416.6,0.001]
[1755285702572,42.91244002,4416.7,4416.6,0.001]
[1755285702778,44.26797634,4416.7,4416.6,0.001]
[1755285703175,42.50297634,4416.7,4416.6,0.001]
[1755285703397,43.45997634,4416.7,4416.6,0.001]
[1755285704573,42.24518217,4416.7,4416.6,0.001]
[1755285704994,37.10418217,4416.7,4416.6,0.001]
[1755285705192,4.118512,4416.7,4416.6,0.001]
[1755285705392,6.38264585,4416.7,4416.6,0.001]
[1755285705618,9.49624585,4416.7,4416.6,0.001]
[1755285706114,7.232112,4416.7,4416.6,0.001]
[1755285706300,4.83959018,4416.7,4416.6,0.001]
[1755285706700,7.10372403,4416.7,4416.6,0.001]
[1755285706907,6.49624585,4416.7,4416.6,0.001]
[1755285707204,6.95504585,4416.7,4416.6,0.001]
[1755285707403,42.2400217,4416.7,4416.6,0.001]
[1755285707605,43.05017563,4416.7,4416.6,0.001]
[1755285707806,43.5980217,4416.7,4416.6,0.001]
[1755285708005,49.0380217,4416.7,4416.6,0.001]
[1755285709099,49.8480003,4416.7,4416.6,0.001]
[1755285710337,49.0380217,4416.7,4416.6,0.001]
[1755285710537,44.4470217,4416.7,4416.6,0.001]
[1755285710744,46.7230217,4416.7,4416.6,0.001]
[1755285711188,47.1818217,4416.7,4416.6,0.001]
[1755285712223,47.18456326,4416.7,4416.6,0.001]
[1755285712388,46.72576326,4416.7,4416.6,0.001]
[1755285713332,9.67485356,4416.7,4416.6,0.001]
[1755285713529,6.04085356,4416.7,4416.6,0.001]
[1755285713823,9.67485356,4416.7,4416.6,0.001]
[1755285714535,9.1876,4416.7,4416.6,0.001]
[1755285716433,0.002,4417.4,4416.6,0.001]
[1755285716661,0.002,4417.4,4416.8,2.26408259]
[1755285716951,0.002,4417.4,4417.3,2.26382631]
[1755285717119,3.635,4417.4,4417.3,2.26382631]
[1755285717315,0.002,4418.3,4418.2,2.26336517]
[1755285717541,0.002,4418.3,4418.2,2.48970169]
[1755285717542,3.635,4418.3,4418.2,2.48970169]
[1755285718030,3.635,4418.3,4418.2,0.22633652]
[1755285718375,0.002,4418.3,4418.2,2.48970169]
[1755285718554,0.002,4418.3,4418.2,2.26336517]
[1755285718854,3.635,4418.3,4418.2,2.26336517]
[1755285720756,0.002,4418.3,4418.2,2.26336517]
[1755285720942,0.002,4418.3,4418.2,6.69616443]
[1755285723940,0.002,4418.8,4418.7,2.26310905]
[1755285724124,0.02,4419.4,4418.7,2.26310905]
[1755285724125,0.02,4419.4,4419.3,2.2628018]
[1755285724322,0.002,4419.6,4419.5,2.2626994]
[1755285724525,0.002,4420.7,4419.5,2.2626994]
[1755285724526,0.002,4420.7,4420.3,2.26228988]
[1755285725879,0.002,4420.7,4419.7,3.0]
[1755285726026,0.002,4420.7,4420.2,2.26233822]
[1755285726380,0.002,4420.7,4420.1,2.26237288]
[1755285726580,0.1128,4420.5,4419.9,0.1128]
[1755285726747,0.1128,4420.5,4420.2,2.26229524]
[1755285727084,0.1128,4420.5,4420.0,2.26244343]
[1755285727382,0.1128,4420.5,4419.9,0.1128]
[1755285727524,0.8867,4420.3,4419.3,2.26275782]
[1755285727744,0.1128,4419.9,4419.7,2.26258789]
[1755285727968,0.1128,4419.9,4419.4,0.1128]
[1755285728457,0.1128,4419.9,4419.8,2.26254581]
[1755285728762,0.1128,4419.9,4419.7,2.26258328]
[1755285728927,0.1128,4419.9,4419.4,0.1128]
[1755285729128,0.1128,4419.9,4419.4,2.26270751]
[1755285729129,0.5454,4419.9,4419.4,2.26270751]
[1755285729332,0.4326,4419.8,4419.3,0.1128]
[1755285729530,0.8867,4419.8,4419.3,0.1128]
[1755285729734,0.1128,4419.4,4418.7,0.1128]
[1755285729936,0.1128,4419.4,4417.9,2.26347233]
[1755285729937,0.8867,4419.3,4418.6,0.680119]
[1755285730149,0.1128,4418.8,4418.2,0.1128]
[1755285730370,0.1128,4418.8,4418.6,2.26311085]
[1755285730541,0.1128,4418.8,4418.2,1.0306255]
[1755285730542,0.1128,4418.8,4418.7,2.26310905]
[1755285731269,2.262754,4419.4,4418.6,2.26311492]
[1755285731454,0.1128,4418.8,4418.2,3.29396945]
[1755285731639,0.1128,4418.8,4418.2,0.680198]
[1755285731830,3.629,4419.0,4418.2,0.680198]
[1755285731831,0.1128,4418.5,4418.2,0.680198]
[1755285732027,0.1128,4418.5,4417.8,0.1128]
[1755285732227,0.8867,4418.4,4417.8,0.1128]
[1755285732435,0.1128,4418.5,4417.8,0.1128]
[1755285732871,0.1128,4418.5,4418.0,2.26346604]
[1755285733439,0.1128,4418.5,4418.1,2.26340254]
[1755285733837,0.1128,4418.5,4418.4,2.26326271]
[1755285735798,3.629,4419.0,4418.1,0.46397494]
[1755285736109,3.631,4419.7,4418.4,20.00265274]
[1755285736311,3.631,4419.7,4419.3,2.2628018]
[1755285736312,0.1128,4419.4,4419.3,2.2628018]
[1755285736517,0.1128,4419.4,4418.7,2.37586367]
[1755285736813,0.1128,4419.4,4419.0,2.26295268]
[1755285737167,0.1128,4419.4,4418.9,2.26299899]
[1755285737372,0.1128,4419.4,4417.8,3.0]
[1755285737612,0.1128,4418.9,4418.5,2.26317549]
[1755285737907,0.1128,4418.9,4418.1,0.1128]
[1755285737908,0.5454,4418.9,4418.1,0.1128]
[1755285738110,0.8867,4418.8,4418.4,2.26325237]
[1755285738308,0.8867,4418.8,4418.5,2.26318335]
[1755285738475,0.4541,4418.8,4418.5,2.26318335]
[1755285738673,0.4541,4418.8,4417.6,2.94389422]
[1755285738674,6.77783013,4418.7,4417.1,0.02]
[1755285738975,0.1128,4418.3,4417.7,2.26361542]
[1755285739314,0.1128,4417.9,4417.8,2.26352075]
[1755285739496,3.628,4418.6,4417.9,2.2634689]
[1755285739807,0.1128,4418.1,4417.6,2.2636688]
[1755285740014,0.1128,4418.1,4417.7,2.26361193]
[1755285740328,0.8867,4418.0,4417.7,2.26361193]
[1755285740927,0.8867,4418.0,4417.2,2.37665717]
[1755285741105,0.1128,4418.1,4417.3,2.8714853]
[1755285741106,0.8867,4417.9,4417.3,2.8714853]
[1755285741305,0.8867,4417.9,4417.3,0.60770062]
[1755285741626,0.1128,4417.7,4417.2,0.1128]
[1755285741926,0.5454,4417.7,4417.3,2.26382631]
[1755285742098,0.5454,4417.7,4417.2,2.37667624]
[1755285742298,0.5454,4417.7,4417.1,0.02]
[1755285742299,0.8867,4417.6,4417.1,0.02]
[1755285742613,0.1128,4417.4,4417.1,0.02]
[1755285742936,0.1128,4417.4,4417.1,2.28390406]
[1755285743128,0.1128,4417.4,4417.1,0.02]
[1755285743344,0.4326,4417.3,4417.1,0.02]
[1755285743849,0.4326,4417.3,4417.1,2.28392204]
[1755285743997,0.1128,4417.4,4417.2,2.26387756]
[1755285744519,0.8867,4417.3,4417.1,0.02]
[1755285744845,0.8867,4417.3,4417.1,2.28392217]
[1755285745130,0.1128,4417.4,4417.1,0.02]
[1755285745499,0.8867,4417.3,4417.1,0.02]
[1755285746001,0.8867,4417.2,4417.1,0.02]
[1755285749217,2.37660178,4417.4,4417.1,0.02]
[1755285749218,0.1128,4417.4,4417.1,0.02]
[1755285749716,0.8867,4417.3,4417.1,0.02]
[1755285750110,0.1128,4417.4,4417.1,0.02]
[1755285750454,0.8867,4417.2,4417.1,0.02]
[1755285751731,4.5137,4417.2,4417.1,0.02]
[1755285751904,4.97635,4417.2,4417.1,0.02]
[1755285752933,7.24022756,4417.2,4417.1,0.02]
[1755285753342,4.97635,4417.2,4417.1,0.02]
[1755285754310,0.1128,4417.4,4417.1,0.02]
[1755285754536,0.1128,4417.2,4417.1,0.02]
[1755285755950,0.9995,4417.2,4417.1,0.02]
[1755285756732,3.26337756,4417.2,4417.1,0.02]
[1755285756915,3.95241532,4417.2,4417.1,0.02]
[1755285757938,1.68853776,4417.2,4417.1,0.02]
[1755285758243,3.95241532,4417.2,4417.1,0.02]
[1755285759757,4.43826498,4417.2,4417.1,0.02]
[1755285759957,4.98826498,4417.2,4417.1,0.02]
[1755285760159,8.59794143,4417.2,4417.1,0.02]
[1755285760459,37.98826498,4417.2,4417.1,0.02]
[1755285760836,38.79824358,4417.2,4417.1,0.02]
[1755285761143,38.79824358,4417.2,4417.1,1e-08]
[1755285761560,37.98826498,4417.2,4417.1,1e-08]
[1755285761749,38.19905151,4417.2,4417.1,1e-08]
[1755285762127,37.98826498,4417.2,4417.1,1e-08]
[1755285762667,37.98826498,4417.2,4416.6,1e-08]
[1755285762668,2.26413385,4416.7,4416.6,1e-08]
[1755285762831,2.26428765,4416.4,4416.3,0.001]
[1755285763164,39.49677883,4416.4,4416.3,0.001]
[1755285763365,43.58340915,4416.4,4416.3,0.001]
[1755285763575,43.58340915,4416.4,4414.1,0.1336]
[1755285763576,2.81454403,4415.9,4414.1,0.02]
[1755285763732,39.44054403,4415.9,4414.1,0.02]
[1755285763925,40.96999369,4415.9,4414.1,0.02]
[1755285764164,41.33309369,4415.9,4414.1,2.28544855]
[1755285764361,7.87851416,4415.9,4414.2,0.02265416]
[1755285764560,11.50451416,4415.9,4414.1,0.1336]
[1755285764730,11.50451416,4415.9,4414.3,2.2653589]
[1755285765262,11.50451416,4415.9,4414.2,2.26541206]
[1755285765463,41.50451416,4415.9,4414.1,0.02]
[1755285765664,41.50451416,4415.9,4414.1,2.28546603]
[1755285765864,41.50451416,4415.9,4414.1,0.02]
[1755285766635,11.50451416,4415.9,4414.1,0.02]
[1755285766834,11.50451416,4415.9,4414.1,0.1336]
[1755285766835,4.22544966,4415.9,4414.1,0.1336]
[1755285767069,3.7396,4415.9,4415.4,2.26576148]
[1755285767235,3.7396,4415.9,4415.4,0.001]
[1755285767572,3.7396,4415.9,4415.6,2.26469673]
[1755285767866,3.7396,4415.9,4415.5,2.26470057]
[1755285768070,3.7396,4415.9,4415.4,0.001]
[1755285768234,6.93414403,4415.9,4415.4,0.001]
[1755285769169,6.46304403,4415.9,4415.4,0.001]
[1755285769372,6.93414403,4415.9,4415.4,0.001]
[1755285769673,11.88843129,4415.9,4415.4,0.001]
[1755285770733,41.88843129,4415.9,4415.4,0.001]
[1755285771673,42.4932707,4415.9,4415.4,0.001]
[1755285773851,42.4932707,4415.9,4415.3,1e-08]
[1755285773852,5.81480047,4415.4,4415.3,1e-08]
[1755285774050,2.81541615,4414.2,4413.1,0.02]
[1755285774252,6.55401615,4414.2,4413.1,0.02]
[1755285774575,40.48401615,4414.2,4413.1,0.02]
[1755285774742,42.62347597,4414.2,4413.1,0.02]
[1755285775174,42.62347597,4414.2,4414.1,1e-08]
[1755285775343,43.10733542,4414.2,4414.1,1e-08]
[1755285775884,43.21745566,4414.2,4414.1,1e-08]
[1755285776285,44.57845566,4414.2,4414.1,1e-08]
[1755285776794,5.81592948,4413.2,4413.1,0.02]
[1755285777097,9.44092948,4413.2,4413.1,0.02]
[1755285777275,10.37092948,4413.2,4413.1,0.02]
[1755285777645,10.65564691,4413.2,4413.1,0.02]
[1755285778247,40.65564691,4413.2,4413.1,1e-08]
[1755285778475,42.43088913,4413.2,4413.1,1e-08]
[1755285779981,42.43088913,4413.2,4411.1,0.02]
[1755285779982,2.2668589,4411.4,4411.1,0.02]
[1755285780282,5.442,4412.2,4411.1,0.02]
[1755285780496,3.625,4412.1,4411.2,2.26691672]
[1755285780695,3.625,4412.1,4411.1,0.02]
[1755285780858,6.79819458,4412.1,4411.2,2.26694572]
[1755285781060,3.625,4412.1,4411.1,0.02]
[1755285781602,2.26654578,4412.0,4411.1,0.02]
[1755285781892,5.442,4412.2,4411.8,2.26660479]
[1755285782063,3.626,4412.1,4411.6,2.26675129]
[1755285782264,3.626,4412.1,4411.5,2.26679527]
[1755285782597,3.626,4412.1,4411.8,2.26664619]
[1755285782981,0.4589,4413.4,4412.1,2.26649441]
[1755285783167,0.4589,4413.4,4412.0,2.26653404]
[1755285783168,3.0,4413.0,4412.0,2.26653404]
[1755285783498,5.89198366,4413.1,4412.0,2.26653404]
[1755285783499,3.626,4412.9,4412.0,2.26653404]
[1755285783695,2.72473717,4413.4,4412.3,2.266379]
[1755285783894,2.26592948,4413.2,4412.0,2.26651771]
[1755285784199,4.44847372,4413.3,4411.2,2.49792822]
[1755285784200,3.626,4413.1,4411.2,3.23097788]
[1755285784360,3.55,4413.0,4411.3,0.32509779]
[1755285784560,3.55,4413.0,4411.1,0.701243]
[1755285784561,4.48,4413.0,4411.1,0.701243]
[1755285784899,3.55,4412.8,4411.1,0.02]
[1755285785097,2.26660214,4411.9,4411.1,0.021]
[1755285785420,3.626,4411.8,4411.1,0.021]
[1755285785628,3.626,4411.8,4411.3,2.26690169]
[1755285785846,3.626,4411.8,4411.7,2.26669991]
[1755285785992,0.8106,4412.7,4411.9,2.26659708]
[1755285786319,3.626,4412.6,4411.5,2.2667779]
[1755285786521,5.89225002,4412.6,4411.6,2.26673986]
[1755285787029,3.626,4412.6,4411.6,2.26673986]
[1755285787320,3.626,4412.6,4411.4,2.26684908]
[1755285787321,3.626,4412.6,4411.7,2.26669279]
[1755285787512,3.626,4412.6,4411.1,0.021]
[1755285787513,0.5892199,4412.5,4411.5,2.26675371]
[1755285787713,0.5892199,4412.5,4411.1,0.021]
[1755285787889,0.5892199,4412.5,4411.7,2.26665326]
[1755285788490,0.5892199,4412.5,4411.8,2.26663375]
[1755285788689,0.5892199,4412.5,4411.1,0.021]
[1755285788690,0.5892199,4412.5,4411.7,2.26668849]
[1755285789425,0.5892199,4412.5,4411.6,2.26671418]
[1755285789724,0.5892199,4412.5,4411.3,2.26686386]
[1755285790030,0.5892199,4412.5,4411.6,2.26670115]
[1755285790323,0.1136,4412.0,4411.6,2.26670115]
[1755285790496,3.626,4411.9,4411.6,2.2667365]
[1755285790690,3.626,4411.9,4411.5,2.2667996]
[1755285790892,3.99996,4411.9,4411.1,0.021]
[1755285791093,0.1136,4411.4,4411.1,2.28799939]
[1755285791317,3.626,4411.3,4411.1,2.28799939]
[1755285791524,3.626,4411.3,4411.2,2.26695683]
[1755285791847,3.626,4411.3,4411.1,0.021]
[1755285792902,3.626,4411.3,4411.2,2.26695683]
[1755285793108,3.626,4411.3,4411.1,0.021]
[1755285793109,3.7396,4411.3,4411.1,0.021]
[1755285793724,3.7396,4411.3,4411.2,2.26695683]
[1755285793895,3.7396,4411.3,4411.1,0.021]
[1755285794095,3.7396,4411.3,4411.2,2.26695683]
[1755285794511,3.7396,4411.3,4411.1,2.28800769]
[1755285794917,3.7396,4411.3,4411.1,2.28796838]
[1755285795124,3.7396,4411.3,4411.2,2.26695683]
[1755285795520,3.7396,4411.3,4411.1,2.28799704]
[1755285795721,3.7396,4411.3,4411.2,2.26695683]
[1755285796107,3.626,4411.3,4411.2,2.26695683]
[1755285796445,3.625,4412.0,4411.9,2.26659705]
[1755285796607,3.7386,4412.3,4411.9,2.26656296]
[1755285796807,3.625,4412.2,4412.1,2.26649441]
[1755285797902,0.002,4413.0,4412.1,0.56690738]
[1755285798106,3.7386,4412.9,4412.2,2.26640103]
[1755285798302,3.7386,4412.9,4412.1,0.1136]
[1755285798503,0.1136,4412.3,4411.6,0.1136]
[1755285798707,3.625,4412.2,4412.0,2.26654565]
[1755285799047,3.625,4412.2,4411.8,2.26664853]
[1755285799219,0.9355,4412.1,4411.6,2.26674859]
[1755285799553,0.9355,4412.1,4411.7,2.26669991]
[1755285799554,0.1136,4411.8,4411.7,2.26669991]
[1755285801048,0.1136,4411.8,4411.6,2.26673989]
[1755285801357,0.1136,4411.8,4411.2,0.1136]
[1755285801662,0.1136,4411.8,4411.7,2.26669991]
[1755285802026,0.1136,4412.0,4411.9,2.26658375]
[1755285802811,0.1136,4412.0,4411.2,0.1136]
[1755285803037,0.4587,4411.9,4411.1,0.021]
[1755285803246,0.1136,4411.6,4411.2,2.26691755]
[1755285803453,3.624,4411.5,4411.1,2.28799306]
[1755285803752,3.624,4411.5,4411.1,0.021]
[1755285803955,0.4587,4411.4,4411.1,0.021]
[1755285804248,3.624,4411.5,4411.4,2.26685405]
[1755285804425,3.624,4411.5,4411.3,2.26689043]
[1755285804626,3.624,4411.5,4411.2,2.26695124]
[1755285805025,3.624,4411.5,4411.1,2.28800701]
[1755285805338,4.1008,4411.5,4411.2,2.2669561]
[1755285805544,3.624,4411.5,4411.4,2.26685405]
[1755285806062,3.624,4411.8,4411.1,0.021]
[1755285806258,0.1136,4411.9,4411.8,2.26664853]
[1755285809837,3.624,4412.1,4411.8,2.26664853]
[1755285809838,3.624,4412.1,4412.0,2.26654578]
[1755285810156,0.002,4412.2,4412.1,5.26649441]
[1755285810351,0.002,4412.7,4412.2,5.26644304]
[1755285810537,0.002,4412.7,4412.2,2.26644304]
[1755285810741,0.002,4412.7,4412.4,2.2662917]
[1755285810929,0.002,4412.7,4411.9,2.26659701]
[1755285811263,4.5585,4412.6,4411.4,2.26685405]
[1755285811549,4.5585,4412.6,4412.1,2.26644327]
[1755285811752,3.623,4412.6,4412.1,2.26644327]
[1755285812051,3.623,4412.6,4411.4,5.26685405]
[1755285812052,0.9355,4412.5,4412.2,2.26642079]
[1755285812254,0.9355,4412.4,4411.9,2.26655243]
[1755285812458,0.9355,4412.3,4411.2,3.24016613]
[1755285812623,0.9355,4412.3,4411.7,2.26669322]
[1755285812826,0.9355,4412.3,4411.2,0.24016613]
[1755285812827,0.9355,4412.3,4411.8,2.266637]
[1755285813021,0.9355,4412.2,4411.8,2.266637]
[1755285813461,0.9355,4412.2,4411.9,2.26658058]
[1755285814360,0.4587,4412.2,4411.2,0.24016613]
[1755285814535,0.002,4412.7,4412.4,2.26632169]
[1755285814858,0.002,4412.7,4411.6,3.0]
[1755285815044,0.4587,4412.6,4411.5,5.26675143]
[1755285815479,0.4587,4412.6,4412.1,2.26646785]
[1755285815759,0.4768,4412.5,4410.9,3.622]
[1755285815950,0.88517,4412.5,4411.8,2.26660823]
[1755285816146,0.88517,4412.5,4411.6,2.26675129]
[1755285816147,0.4321,4412.4,4411.6,2.26675129]
[1755285816350,1.022027,4412.4,4411.7,2.26669766]
[1755285816657,1.022027,4412.4,4411.1,0.021]
[1755285816658,0.8901,4412.3,4411.1,0.021]
[1755285816858,0.55,4412.0,4411.1,0.021]
[1755285817061,33.0,4411.9,4410.4,0.4321]
[1755285817222,2.26716241,4410.8,4410.3,0.001]
[1755285817424,3.622,4410.8,4410.3,0.001]
[1755285817668,5.32771392,4410.8,4410.3,0.001]
[1755285817829,4.5121,4410.8,4410.3,0.001]
[1755285818660,4.5121,4410.8,4410.4,2.26735413]
[1755285818856,4.5121,4410.8,4410.3,0.001]
[1755285819056,3.622,4410.8,4410.3,0.001]
[1755285819732,4.5121,4410.8,4410.3,0.001]
[1755285820062,4.6257,4410.8,4410.3,0.001]
[1755285820261,10.90543241,4410.8,4410.3,0.001]
[1755285820441,3.55,4410.7,4410.1,0.02]
[1755285820637,0.1136,4410.2,4410.1,0.02]
[1755285820948,9.00307086,4410.2,4410.1,0.02]
[1755285821147,11.02021508,4410.2,4410.1,0.02]
[1755285821547,11.57021508,4410.2,4410.1,0.02]
[1755285821957,11.57021508,4410.2,4408.1,0.02]
[1755285821958,0.55,4409.3,4408.1,0.02]
[1755285822154,33.0,4410.1,4408.1,0.02]
[1755285822155,0.55,4409.0,4408.1,0.02]
[1755285822327,39.067,4409.2,4408.1,0.02]
[1755285822328,2.20446404,4408.9,4408.1,0.02]
[1755285822529,3.622,4409.0,4408.1,0.02]
[1755285822730,2.26838176,4408.5,4408.1,0.02]
[1755285823023,3.622,4408.4,4408.1,0.02]
[1755285823182,2.26849961,4408.2,4408.1,0.02]
[1755285823487,5.89049961,4408.2,4408.1,0.02]
[1755285823968,6.78059961,4408.2,4408.1,0.02]
[1755285824188,9.78059961,4408.2,4408.1,0.02]
[1755285824333,10.33059961,4408.2,4408.1,0.02]
[1755285824534,11.62672145,4408.2,4408.1,0.02]
[1755285825227,3.622,4408.2,4408.1,0.02]
[1755285825466,0.8901,4409.3,4408.1,0.02]
[1755285825674,3.624,4409.2,4408.1,0.02]
[1755285825971,2.26849686,4408.3,4408.1,0.02]
[1755285826271,5.89449961,4408.2,4408.1,0.02]
[1755285826564,0.4321,4408.7,4408.1,0.02]
[1755285826769,2.26845541,4408.3,4408.1,0.02]
[1755285826977,2.26849961,4408.2,4408.1,0.02]
[1755285827137,3.15859961,4408.2,4408.1,0.02]
[1755285827330,3.70859961,4408.2,4408.1,0.02]
[1755285827564,7.33959961,4408.2,4408.1,0.02]
[1755285827929,0.8901,4408.2,4408.1,0.02]
[1755285828269,3.631,4408.2,4408.1,0.02]
[1755285828428,3.631,4408.3,4408.1,0.02]
[1755285828868,3.631,4408.3,4408.1,2.28854313]
[1755285829070,3.631,4408.3,4408.2,2.26849961]
[1755285829306,3.631,4408.3,4408.1,0.02]
[1755285829833,4.0631,4408.3,4408.1,0.02]
[1755285831345,4.089,4408.3,4408.1,0.02]
[1755285831548,3.631,4408.3,4408.1,0.02]
[1755285831970,0.1136,4408.2,4408.1,0.02]
[1755285832136,0.1136,4408.2,4408.1,2.28855107]
[1755285832337,0.1136,4408.2,4408.1,0.02]
[1755285833109,0.1136,4408.2,4408.1,2.28855107]
[1755285833837,0.1136,4408.2,4408.1,0.02]